[Event "December 5 Early 2023"]
[Site "https://www.chess.com"]
[Date "2023.12.05"]
[Round "1"]
[White "Sychev, Klementy"]
[Black "Devaev, Alexander"]
[Result "0-1"]
[Board "49"]
[TimeControl "180+1"]
[WhiteFideId "4114060"]
[BlackFideId "4169395"]
[WhiteElo "2901"]
[BlackElo "2485"]
[WhiteTeam "FID"]
[BlackTeam "RUS"]
[WhiteClock "0:00:00"]
[BlackClock "0:00:13"]

1. e4 {[%clk 0:03:00]}  c6 {[%clk 0:02:59]} 2. c4 {[%clk 0:02:59]}  d5 {[%clk 0:03:00]} 3. cxd5 {[%clk 0:02:59]}  cxd5 {[%clk 0:03:01]} 4. exd5 {[%clk 0:02:56]}  Qxd5 {[%clk 0:03:01]} 5. Nc3 {[%clk 0:02:54]}  Qd6 {[%clk 0:03:01]} 6. d4 {[%clk 0:02:54]}  e6 {[%clk 0:03:02]} 7. Nf3 {[%clk 0:02:53]}  Nf6 {[%clk 0:03:02]} 8. Bc4 {[%clk 0:02:38]}  Be7 {[%clk 0:03:01]} 9. O-O {[%clk 0:02:37]}  O-O {[%clk 0:03:01]} 10. Nb5 {[%clk 0:02:34]}  Qd8 {[%clk 0:02:50]} 11. Bf4 {[%clk 0:02:32]}  Nc6 {[%clk 0:02:41]} 12. Rc1 {[%clk 0:01:56]}  a6 {[%clk 0:02:26]} 13. Nc3 {[%clk 0:01:51]}  b5 {[%clk 0:02:23]} 14. Bb3 {[%clk 0:01:43]}  Na5 {[%clk 0:02:20]} 15. Bc2 {[%clk 0:01:20]}  Bb7 {[%clk 0:02:20]} 16. Re1 {[%clk 0:01:20]}  Rc8 {[%clk 0:02:16]} 17. Ne5 {[%clk 0:01:18]}  Nc4 {[%clk 0:02:15]} 18. Nxc4 {[%clk 0:01:13]}  Rxc4 {[%clk 0:02:13]} 19. Be5 {[%clk 0:01:12]}  Nd7 {[%clk 0:02:04]} 20. Bg3 {[%clk 0:00:50]}  Nf6 {[%clk 0:01:59]} 21. Be5 {[%clk 0:00:47]}  Bb4 {[%clk 0:01:33]} 22. Qd3 {[%clk 0:00:40]}  g6 {[%clk 0:01:26]} 23. Bb3 {[%clk 0:00:39]}  Rc8 {[%clk 0:01:22]} 24. a3 {[%clk 0:00:39]}  Be7 {[%clk 0:01:15]} 25. Qg3 {[%clk 0:00:23]}  Qd7 {[%clk 0:01:02]} 26. h3 {[%clk 0:00:18]}  Qd8 {[%clk 0:00:52]} 27. Rcd1 {[%clk 0:00:18]}  Nh5 {[%clk 0:00:44]} 28. Qd3 {[%clk 0:00:14]}  Nf6 {[%clk 0:00:43]} 29. Qe2 {[%clk 0:00:14]}  Nd7 {[%clk 0:00:32]} 30. Bf4 {[%clk 0:00:12]}  Nb6 {[%clk 0:00:30]} 31. Bh6 {[%clk 0:00:12]}  Re8 {[%clk 0:00:30]} 32. Bxe6 {[%clk 0:00:09]}  Bg5 {[%clk 0:00:20]} 33. Bxg5 {[%clk 0:00:04]}  Qxg5 {[%clk 0:00:20]} 34. f4 {[%clk 0:00:04]}  Qf6 {[%clk 0:00:18]} 35. d5 {[%clk 0:00:03]}  fxe6 {[%clk 0:00:16]} 36. dxe6 {[%clk 0:00:04]}  Nc4 {[%clk 0:00:15]} 37. Rd7 {[%clk 0:00:02]}  Bc6 {[%clk 0:00:14]} 38. Ne4 {[%clk 0:00:00]}  Qxf4 {[%clk 0:00:13]} 0-1

[Event "December 5 Early 2023"]
[Site "https://www.chess.com"]
[Date "2023.12.05"]
[Round "1"]
[White "Grochal, Joey"]
[Black "Baskakov, Egor"]
[Result "0-1"]
[Board "50"]
[TimeControl "180+1"]
[WhiteFideId "1019945"]
[BlackFideId "24197866"]
[WhiteElo "2485"]
[BlackElo "2899"]
[WhiteTeam "NED"]
[BlackTeam "RUS"]
[WhiteClock "0:00:01"]
[BlackClock "0:00:21"]

1. e4 {[%clk 0:03:00]}  c5 {[%clk 0:03:00]} 2. Nf3 {[%clk 0:03:00]}  Nf6 {[%clk 0:03:00]} 3. Nc3 {[%clk 0:02:59]}  d5 {[%clk 0:03:00]} 4. exd5 {[%clk 0:02:56]}  Nxd5 {[%clk 0:03:01]} 5. Bc4 {[%clk 0:02:56]}  Nb6 {[%clk 0:03:01]} 6. Bb5+ {[%clk 0:02:54]}  Bd7 {[%clk 0:03:01]} 7. O-O {[%clk 0:02:48]}  Nc6 {[%clk 0:02:57]} 8. d4 {[%clk 0:02:47]}  cxd4 {[%clk 0:02:57]} 9. Nxd4 {[%clk 0:02:46]}  g6 {[%clk 0:02:55]} 10. Nxc6 {[%clk 0:02:45]}  Bxc6 {[%clk 0:02:56]} 11. Bxc6+ {[%clk 0:02:45]}  bxc6 {[%clk 0:02:56]} 12. Qf3 {[%clk 0:02:44]}  Qc8 {[%clk 0:02:47]} 13. Re1 {[%clk 0:02:29]}  Bg7 {[%clk 0:02:47]} 14. Bg5 {[%clk 0:02:30]}  f6 {[%clk 0:02:35]} 15. Be3 {[%clk 0:02:20]}  e5 {[%clk 0:02:28]} 16. Rad1 {[%clk 0:02:08]}  O-O {[%clk 0:02:19]} 17. Rd6 {[%clk 0:02:08]}  c5 {[%clk 0:02:12]} 18. Rc6 {[%clk 0:02:04]}  Qd7 {[%clk 0:01:46]} 19. Bxc5 {[%clk 0:02:04]}  Rfd8 {[%clk 0:01:39]} 20. Rd1 {[%clk 0:01:56]}  Qf7 {[%clk 0:01:32]} 21. Bxb6 {[%clk 0:01:41]}  axb6 {[%clk 0:01:32]} 22. Rxb6 {[%clk 0:01:41]}  f5 {[%clk 0:01:22]} 23. g3 {[%clk 0:01:28]}  e4 {[%clk 0:01:20]} 24. Qe2 {[%clk 0:01:28]}  Bd4 {[%clk 0:01:10]} 25. Rb4 {[%clk 0:01:22]}  Bxc3 {[%clk 0:01:08]} 26. Rxd8+ {[%clk 0:01:18]}  Rxd8 {[%clk 0:01:08]} 27. bxc3 {[%clk 0:01:18]}  Qxa2 {[%clk 0:01:08]} 28. Kg2 {[%clk 0:01:04]}  Rc8 {[%clk 0:00:58]} 29. Rb7 {[%clk 0:00:54]}  Qd5 {[%clk 0:00:56]} 30. Qa6 {[%clk 0:00:43]}  e3+ {[%clk 0:00:49]} 31. f3 {[%clk 0:00:40]}  Re8 {[%clk 0:00:38]} 32. Rb1 {[%clk 0:00:15]}  Qd2+ {[%clk 0:00:27]} 33. Kh3 {[%clk 0:00:14]}  e2 {[%clk 0:00:27]} 34. Qc4+ {[%clk 0:00:04]}  Kh8 {[%clk 0:00:27]} 35. Rb7 {[%clk 0:00:01]}  Qh6+ {[%clk 0:00:21]} 36. Kg2 {[%clk 0:00:01]}  e1=Q {[%clk 0:00:21]} 37. Qd4+ {[%clk 0:00:01]}  Qe5 {[%clk 0:00:21]} 38. Qxe5+ {[%clk 0:00:01]}  Rxe5 {[%clk 0:00:21]} 0-1

[Event "December 5 Early 2023"]
[Site "https://www.chess.com"]
[Date "2023.12.05"]
[Round "1"]
[White "Harutjunyan, Gevorg"]
[Black "Sreyas Payyappat"]
[Result "1-0"]
[Board "51"]
[TimeControl "180+1"]
[WhiteFideId "13300873"]
[BlackFideId "46674969"]
[WhiteElo "2883"]
[BlackElo "2483"]
[WhiteTeam "ARM"]
[BlackTeam "IND"]
[WhiteClock "0:00:43"]
[BlackClock "0:00:13"]

1. e4 {[%clk 0:03:00]}  c6 {[%clk 0:02:57]} 2. d3 {[%clk 0:03:00]}  d5 {[%clk 0:02:58]} 3. Nf3 {[%clk 0:03:01]}  dxe4 {[%clk 0:02:56]} 4. dxe4 {[%clk 0:03:02]}  Qxd1+ {[%clk 0:02:57]} 5. Kxd1 {[%clk 0:03:02]}  Bg4 {[%clk 0:02:57]} 6. Be2 {[%clk 0:03:01]}  Nd7 {[%clk 0:02:55]} 7. Ne1 {[%clk 0:03:00]}  h5 {[%clk 0:02:42]} 8. f3 {[%clk 0:02:51]}  Be6 {[%clk 0:02:42]} 9. Bf4 {[%clk 0:02:43]}  O-O-O {[%clk 0:02:41]} 10. Nd2 {[%clk 0:02:38]}  Ngf6 {[%clk 0:02:35]} 11. h4 {[%clk 0:02:34]}  Nc5 {[%clk 0:02:31]} 12. Nd3 {[%clk 0:02:31]}  Nxd3 {[%clk 0:02:22]} 13. Bxd3 {[%clk 0:02:28]}  g6 {[%clk 0:02:22]} 14. Ke2 {[%clk 0:02:27]}  Bg7 {[%clk 0:02:22]} 15. a4 {[%clk 0:02:21]}  Nd7 {[%clk 0:02:22]} 16. c3 {[%clk 0:02:18]}  Nc5 {[%clk 0:02:22]} 17. Bc2 {[%clk 0:02:19]}  a5 {[%clk 0:02:17]} 18. Be3 {[%clk 0:02:15]}  Na6 {[%clk 0:02:14]} 19. Bb6 {[%clk 0:02:09]}  Rd6 {[%clk 0:02:03]} 20. Bd3 {[%clk 0:01:42]}  c5 {[%clk 0:01:39]} 21. Bxa5 {[%clk 0:01:41]}  c4 {[%clk 0:01:36]} 22. Nxc4 {[%clk 0:01:25]}  Rxd3 {[%clk 0:01:30]} 23. Nb6+ {[%clk 0:01:25]}  Kb8 {[%clk 0:01:26]} 24. Kxd3 {[%clk 0:01:26]}  Nc5+ {[%clk 0:01:26]} 25. Ke3 {[%clk 0:01:21]}  Nb3 {[%clk 0:01:13]} 26. Bb4 {[%clk 0:01:21]}  Nxa1 {[%clk 0:00:40]} 27. Rxa1 {[%clk 0:01:22]}  Rd8 {[%clk 0:00:40]} 28. Bxe7 {[%clk 0:01:17]}  Bh6+ {[%clk 0:00:39]} 29. f4 {[%clk 0:01:16]}  Re8 {[%clk 0:00:40]} 30. Bd6+ {[%clk 0:01:16]}  Ka7 {[%clk 0:00:40]} 31. a5 {[%clk 0:01:15]}  Bf5 {[%clk 0:00:35]} 32. Ra4 {[%clk 0:01:10]}  Ka6 {[%clk 0:00:32]} 33. Nd5 {[%clk 0:01:04]}  Kb5 {[%clk 0:00:23]} 34. Rb4+ {[%clk 0:00:59]}  Kxa5 {[%clk 0:00:23]} 35. Bc7+ {[%clk 0:00:43]}  Ka6 {[%clk 0:00:13]} 36. Bb6 {[%clk 0:00:43]} 1-0

[Event "December 5 Early 2023"]
[Site "https://www.chess.com"]
[Date "2023.12.05"]
[Round "1"]
[White "Shevchuk, Olexandr"]
[Black "Shuvalova, Polina"]
[Result "0-1"]
[Board "56"]
[TimeControl "180+1"]
[WhiteFideId "14113775"]
[BlackFideId "24171760"]
[WhiteElo "2478"]
[BlackElo "2870"]
[WhiteTeam "UKR"]
[BlackTeam "RUS"]
[WhiteClock "0:00:21"]
[BlackClock "0:00:22"]

1. d4 {[%clk 0:03:00]}  Nf6 {[%clk 0:02:56]} 2. c4 {[%clk 0:03:01]}  e6 {[%clk 0:02:56]} 3. g3 {[%clk 0:03:01]}  d5 {[%clk 0:02:56]} 4. Nf3 {[%clk 0:03:00]}  Be7 {[%clk 0:02:56]} 5. Bg2 {[%clk 0:03:01]}  O-O {[%clk 0:02:56]} 6. O-O {[%clk 0:03:01]}  c6 {[%clk 0:02:57]} 7. Qc2 {[%clk 0:03:02]}  b6 {[%clk 0:02:57]} 8. Nbd2 {[%clk 0:03:02]}  c5 {[%clk 0:02:57]} 9. cxd5 {[%clk 0:03:00]}  exd5 {[%clk 0:02:56]} 10. Rd1 {[%clk 0:03:00]}  Bb7 {[%clk 0:02:56]} 11. b3 {[%clk 0:03:00]}  Nbd7 {[%clk 0:02:56]} 12. Bb2 {[%clk 0:03:01]}  Rc8 {[%clk 0:02:56]} 13. Rac1 {[%clk 0:03:01]}  Re8 {[%clk 0:02:55]} 14. Qf5 {[%clk 0:03:00]}  Bf8 {[%clk 0:02:43]} 15. e3 {[%clk 0:02:57]}  g6 {[%clk 0:02:40]} 16. Qh3 {[%clk 0:02:53]}  Bg7 {[%clk 0:02:37]} 17. Ne5 {[%clk 0:02:50]}  Rc7 {[%clk 0:02:27]} 18. Nxd7 {[%clk 0:02:43]}  Nxd7 {[%clk 0:02:16]} 19. Nf3 {[%clk 0:02:34]}  Qc8 {[%clk 0:02:10]} 20. Rd2 {[%clk 0:02:14]}  h5 {[%clk 0:02:06]} 21. Qh4 {[%clk 0:02:09]}  Re4 {[%clk 0:02:00]} 22. Qh3 {[%clk 0:02:06]}  Re8 {[%clk 0:01:58]} 23. Qh4 {[%clk 0:02:05]}  Nf6 {[%clk 0:01:54]} 24. Ne5 {[%clk 0:02:04]}  Ne4 {[%clk 0:01:52]} 25. Rdc2 {[%clk 0:01:54]}  Nd6 {[%clk 0:01:45]} 26. Qf4 {[%clk 0:01:53]}  Nf5 {[%clk 0:01:38]} 27. Nd3 {[%clk 0:01:50]}  Bh6 {[%clk 0:01:28]} 28. Qf3 {[%clk 0:01:45]}  c4 {[%clk 0:01:26]} 29. Nf4 {[%clk 0:01:38]}  Bxf4 {[%clk 0:01:11]} 30. Qxf4 {[%clk 0:01:39]}  b5 {[%clk 0:01:10]} 31. Ba3 {[%clk 0:01:35]}  Rd7 {[%clk 0:01:07]} 32. Bc5 {[%clk 0:01:35]}  a5 {[%clk 0:01:07]} 33. Bh3 {[%clk 0:01:33]}  Rc7 {[%clk 0:01:07]} 34. Bb6 {[%clk 0:01:32]}  Rc6 {[%clk 0:01:05]} 35. Bxa5 {[%clk 0:01:32]}  Rf6 {[%clk 0:01:03]} 36. Bb4 {[%clk 0:01:27]}  Qc6 {[%clk 0:01:02]} 37. Qg5 {[%clk 0:01:23]}  Kg7 {[%clk 0:00:58]} 38. Bg2 {[%clk 0:01:18]}  Nd6 {[%clk 0:00:52]} 39. a4 {[%clk 0:00:53]}  Ne4 {[%clk 0:00:52]} 40. Qh4 {[%clk 0:00:37]}  Bc8 {[%clk 0:00:38]} 41. Be1 {[%clk 0:00:30]}  Bg4 {[%clk 0:00:32]} 42. f4 {[%clk 0:00:21]}  Nd6 {[%clk 0:00:27]} 43. axb5 {[%clk 0:00:21]}  Qxb5 {[%clk 0:00:26]} 44. bxc4 {[%clk 0:00:22]}  Nxc4 {[%clk 0:00:25]} 45. e4 {[%clk 0:00:21]}  Ne3 {[%clk 0:00:24]} 46. Rc5 {[%clk 0:00:22]}  Qe2 {[%clk 0:00:22]} 47. e5 {[%clk 0:00:21]}  Qxg2# {[%clk 0:00:22]} 0-1

[Event "December 5 Early 2023"]
[Site "https://www.chess.com"]
[Date "2023.12.05"]
[Round "1"]
[White "Kaplan, Avi Harrison"]
[Black "Bachmann, Axel"]
[Result "1/2-1/2"]
[Board "60"]
[TimeControl "180+1"]
[WhiteFideId "30934559"]
[BlackFideId "3700488"]
[WhiteElo "2476"]
[BlackElo "2847"]
[WhiteTeam "USA"]
[BlackTeam "PAR"]
[WhiteClock "0:02:24"]
[BlackClock "0:02:23"]

1. e4 {[%clk 0:02:59]}  Nc6 {[%clk 0:02:57]} 2. Nf3 {[%clk 0:02:57]}  d6 {[%clk 0:02:58]} 3. c3 {[%clk 0:02:48]}  Nf6 {[%clk 0:02:59]} 4. d3 {[%clk 0:02:48]}  e5 {[%clk 0:02:56]} 5. Nbd2 {[%clk 0:02:48]}  g6 {[%clk 0:02:54]} 6. Be2 {[%clk 0:02:48]}  Bg7 {[%clk 0:02:54]} 7. Qc2 {[%clk 0:02:48]}  O-O {[%clk 0:02:54]} 8. b4 {[%clk 0:02:48]}  a6 {[%clk 0:02:54]} 9. a4 {[%clk 0:02:44]}  d5 {[%clk 0:02:51]} 10. O-O {[%clk 0:02:43]}  Re8 {[%clk 0:02:50]} 11. h3 {[%clk 0:02:41]}  h6 {[%clk 0:02:39]} 12. Rd1 {[%clk 0:02:24]}  Be6 {[%clk 0:02:23]} 1/2-1/2

[Event "December 5 Early 2023"]
[Site "https://www.chess.com"]
[Date "2023.12.05"]
[Round "1"]
[White "Gharibyan, Mamikon"]
[Black "Mazurkiewicz, Michal"]
[Result "1-0"]
[Board "63"]
[TimeControl "180+1"]
[WhiteFideId "13308300"]
[BlackFideId "1124943"]
[WhiteElo "2835"]
[BlackElo "2474"]
[WhiteTeam "ARM"]
[BlackTeam "POL"]
[WhiteClock "0:00:44"]
[BlackClock "0:00:00"]

1. e4 {[%clk 0:03:00]}  d6 {[%clk 0:02:57]} 2. d4 {[%clk 0:02:59]}  Nf6 {[%clk 0:02:57]} 3. Bd3 {[%clk 0:02:57]}  e5 {[%clk 0:02:55]} 4. Nf3 {[%clk 0:02:56]}  Nbd7 {[%clk 0:02:49]} 5. O-O {[%clk 0:02:52]}  Be7 {[%clk 0:02:49]} 6. Re1 {[%clk 0:02:52]}  O-O {[%clk 0:02:49]} 7. Nc3 {[%clk 0:02:45]}  c6 {[%clk 0:02:49]} 8. a4 {[%clk 0:02:44]}  a5 {[%clk 0:02:49]} 9. h3 {[%clk 0:02:37]}  Re8 {[%clk 0:02:49]} 10. Bc4 {[%clk 0:02:35]}  exd4 {[%clk 0:02:46]} 11. Qxd4 {[%clk 0:02:33]}  Ne5 {[%clk 0:02:34]} 12. Nxe5 {[%clk 0:02:22]}  dxe5 {[%clk 0:02:35]} 13. Qxe5 {[%clk 0:02:21]}  Bb4 {[%clk 0:02:31]} 14. Qg3 {[%clk 0:02:18]}  Bxc3 {[%clk 0:02:03]} 15. bxc3 {[%clk 0:02:13]}  Rxe4 {[%clk 0:01:53]} 16. Bh6 {[%clk 0:01:45]}  Qf8 {[%clk 0:01:39]} 17. Bd3 {[%clk 0:01:34]}  Rxe1+ {[%clk 0:01:24]} 18. Rxe1 {[%clk 0:01:35]}  Be6 {[%clk 0:01:19]} 19. Be3 {[%clk 0:01:30]}  c5 {[%clk 0:01:05]} 20. c4 {[%clk 0:01:22]}  b6 {[%clk 0:00:32]} 21. Qc7 {[%clk 0:01:16]}  Nd7 {[%clk 0:00:30]} 22. Bf4 {[%clk 0:01:14]}  Rc8 {[%clk 0:00:30]} 23. Qb7 {[%clk 0:01:11]}  Re8 {[%clk 0:00:14]} 24. Re3 {[%clk 0:00:57]}  h6 {[%clk 0:00:12]} 25. Rxe6 {[%clk 0:00:48]}  Rxe6 {[%clk 0:00:06]} 26. Qxd7 {[%clk 0:00:48]}  Re1+ {[%clk 0:00:05]} 27. Kh2 {[%clk 0:00:48]}  Qe7 {[%clk 0:00:03]} 28. Qc8+ {[%clk 0:00:43]}  Qf8 {[%clk 0:00:03]} 29. Bh7+ {[%clk 0:00:43]}  Kxh7 {[%clk 0:00:00]} 30. Qxf8 {[%clk 0:00:44]} 1-0

[Event "December 5 Early 2023"]
[Site "https://www.chess.com"]
[Date "2023.12.05"]
[Round "1"]
[White "NovakRatko"]
[Black "Bacrot, Etienne"]
[Result "1/2-1/2"]
[Board "64"]
[TimeControl "180+1"]
[BlackFideId "605506"]
[WhiteElo "2473"]
[BlackElo "2833"]
[BlackTeam "FRA"]
[WhiteClock "0:01:49"]
[BlackClock "0:00:08"]

1. d4 {[%clk 0:02:59]}  d5 {[%clk 0:01:18]} 2. c4 {[%clk 0:02:56]}  e6 {[%clk 0:01:18]} 3. cxd5 {[%clk 0:02:56]}  exd5 {[%clk 0:01:18]} 4. Nc3 {[%clk 0:02:57]}  c6 {[%clk 0:01:19]} 5. f3 {[%clk 0:02:56]}  Bb4 {[%clk 0:01:16]} 6. a3 {[%clk 0:02:56]}  Bxc3+ {[%clk 0:01:02]} 7. bxc3 {[%clk 0:02:57]}  Nd7 {[%clk 0:00:59]} 8. a4 {[%clk 0:02:54]}  Ne7 {[%clk 0:00:56]} 9. Bg5 {[%clk 0:02:53]}  h6 {[%clk 0:00:55]} 10. Bh4 {[%clk 0:02:53]}  O-O {[%clk 0:00:55]} 11. e3 {[%clk 0:02:51]}  Re8 {[%clk 0:00:54]} 12. Qd2 {[%clk 0:02:51]}  Qa5 {[%clk 0:00:53]} 13. Bd3 {[%clk 0:02:41]}  Nb6 {[%clk 0:00:53]} 14. Ne2 {[%clk 0:02:38]}  Bf5 {[%clk 0:00:52]} 15. e4 {[%clk 0:02:29]}  Bh7 {[%clk 0:00:38]} 16. e5 {[%clk 0:02:12]}  Bxd3 {[%clk 0:00:36]} 17. Qxd3 {[%clk 0:02:11]}  Nxa4 {[%clk 0:00:27]} 18. O-O {[%clk 0:02:03]}  Qb5 {[%clk 0:00:27]} 19. Qc2 {[%clk 0:01:54]}  Qb2 {[%clk 0:00:23]} 20. Qd3 {[%clk 0:01:49]}  Qb5 {[%clk 0:00:12]} 21. Qc2 {[%clk 0:01:49]}  Qb2 {[%clk 0:00:09]} 22. Qd3 {[%clk 0:01:49]}  Qb5 {[%clk 0:00:08]} 1/2-1/2

[Event "December 5 Early 2023"]
[Site "https://www.chess.com"]
[Date "2023.12.05"]
[Round "1"]
[White "Reprintsev, Alexander"]
[Black "Rustemov, Alexander"]
[Result "0-1"]
[Board "70"]
[TimeControl "180+1"]
[WhiteFideId "14100541"]
[BlackFideId "4119002"]
[WhiteElo "2466"]
[BlackElo "2820"]
[WhiteTeam "UKR"]
[BlackTeam "RUS"]
[WhiteClock "0:01:11"]
[BlackClock "0:01:05"]

1. e4 {[%clk 0:03:00]}  e6 {[%clk 0:03:00]} 2. d4 {[%clk 0:03:00]}  d5 {[%clk 0:02:59]} 3. Nc3 {[%clk 0:03:00]}  dxe4 {[%clk 0:03:00]} 4. Nxe4 {[%clk 0:02:59]}  Bd7 {[%clk 0:03:00]} 5. Nf3 {[%clk 0:02:57]}  Bc6 {[%clk 0:03:01]} 6. Bd3 {[%clk 0:02:57]}  Nd7 {[%clk 0:03:01]} 7. O-O {[%clk 0:02:56]}  Ngf6 {[%clk 0:03:01]} 8. Ng3 {[%clk 0:02:56]}  Be7 {[%clk 0:03:01]} 9. c4 {[%clk 0:02:55]}  O-O {[%clk 0:03:00]} 10. b3 {[%clk 0:02:55]}  b6 {[%clk 0:03:00]} 11. Bb2 {[%clk 0:02:54]}  Bb7 {[%clk 0:03:01]} 12. Re1 {[%clk 0:02:54]}  c5 {[%clk 0:03:00]} 13. Bc2 {[%clk 0:02:52]}  Re8 {[%clk 0:02:58]} 14. h3 {[%clk 0:02:49]}  Qc7 {[%clk 0:02:57]} 15. Rc1 {[%clk 0:02:45]}  Rad8 {[%clk 0:02:56]} 16. Qe2 {[%clk 0:02:44]}  Qf4 {[%clk 0:02:51]} 17. Qe3 {[%clk 0:02:36]}  Bd6 {[%clk 0:02:38]} 18. Qxf4 {[%clk 0:02:35]}  Bxf4 {[%clk 0:02:38]} 19. Rcd1 {[%clk 0:02:34]}  Bxf3 {[%clk 0:02:37]} 20. gxf3 {[%clk 0:02:34]}  cxd4 {[%clk 0:02:21]} 21. Rxd4 {[%clk 0:02:30]}  Bc7 {[%clk 0:01:54]} 22. Red1 {[%clk 0:02:30]}  Be5 {[%clk 0:01:40]} 23. Rxd7 {[%clk 0:02:27]}  Nxd7 {[%clk 0:01:36]} 24. Rxd7 {[%clk 0:02:26]}  Bxg3 {[%clk 0:01:18]} 25. Rxa7 {[%clk 0:02:20]}  Rd2 {[%clk 0:01:11]} 26. fxg3 {[%clk 0:02:11]}  Rxc2 {[%clk 0:01:10]} 27. Be5 {[%clk 0:01:20]}  Rd8 {[%clk 0:01:08]} 28. Bd6 {[%clk 0:01:11]}  f6 {[%clk 0:01:05]} 0-1

[Event "December 5 Early 2023"]
[Site "https://www.chess.com"]
[Date "2023.12.05"]
[Round "1"]
[White "Yeremyan, Alen"]
[Black "Koutlas, Nikolaos"]
[Result "0-1"]
[Board "71"]
[TimeControl "180+1"]
[WhiteFideId "13308998"]
[BlackFideId "25827138"]
[WhiteElo "2818"]
[BlackElo "2465"]
[WhiteTeam "ARM"]
[BlackTeam "GRE"]
[WhiteClock "0:00:01"]
[BlackClock "0:00:26"]

1. e4 {[%clk 0:03:00]}  e6 {[%clk 0:02:59]} 2. Nc3 {[%clk 0:02:59]}  d5 {[%clk 0:03:00]} 3. Qe2 {[%clk 0:02:56]}  d4 {[%clk 0:02:58]} 4. Nd1 {[%clk 0:02:56]}  e5 {[%clk 0:02:57]} 5. d3 {[%clk 0:02:57]}  Nc6 {[%clk 0:02:37]} 6. g3 {[%clk 0:02:56]}  h5 {[%clk 0:02:36]} 7. h3 {[%clk 0:02:56]}  h4 {[%clk 0:02:33]} 8. g4 {[%clk 0:02:56]}  g5 {[%clk 0:02:28]} 9. Bg2 {[%clk 0:02:55]}  Be6 {[%clk 0:02:22]} 10. Nf3 {[%clk 0:02:56]}  f6 {[%clk 0:02:17]} 11. O-O {[%clk 0:02:56]}  a5 {[%clk 0:02:14]} 12. c3 {[%clk 0:02:57]}  Bc5 {[%clk 0:02:12]} 13. cxd4 {[%clk 0:02:57]}  Nxd4 {[%clk 0:02:11]} 14. Nxd4 {[%clk 0:02:58]}  Bxd4 {[%clk 0:02:11]} 15. Be3 {[%clk 0:02:56]}  Ne7 {[%clk 0:02:10]} 16. Bxd4 {[%clk 0:02:55]}  Qxd4 {[%clk 0:02:08]} 17. Ne3 {[%clk 0:02:54]}  Ng6 {[%clk 0:02:05]} 18. Qc2 {[%clk 0:02:51]}  c6 {[%clk 0:02:04]} 19. Rfd1 {[%clk 0:02:48]}  Kf7 {[%clk 0:01:47]} 20. a3 {[%clk 0:02:37]}  Rhd8 {[%clk 0:01:46]} 21. Bf1 {[%clk 0:02:34]}  Rd7 {[%clk 0:01:38]} 22. Rac1 {[%clk 0:02:30]}  a4 {[%clk 0:01:36]} 23. Qc3 {[%clk 0:02:20]}  Rad8 {[%clk 0:01:34]} 24. Rd2 {[%clk 0:02:16]}  Nf4 {[%clk 0:01:30]} 25. Rcd1 {[%clk 0:02:09]}  Bb3 {[%clk 0:01:30]} 26. Rc1 {[%clk 0:02:08]}  Qb6 {[%clk 0:01:22]} 27. Nf5 {[%clk 0:02:04]}  Ne6 {[%clk 0:01:19]} 28. Re1 {[%clk 0:01:53]}  Nd4 {[%clk 0:01:19]} 29. Re3 {[%clk 0:01:49]}  Nxf5 {[%clk 0:01:10]} 30. exf5 {[%clk 0:01:49]}  Rd4 {[%clk 0:01:07]} 31. Qc1 {[%clk 0:01:45]}  Qb5 {[%clk 0:01:04]} 32. Qe1 {[%clk 0:01:45]}  Qd5 {[%clk 0:01:02]} 33. Bg2 {[%clk 0:01:44]}  Qd6 {[%clk 0:01:02]} 34. Bf1 {[%clk 0:01:42]}  Qc7 {[%clk 0:00:56]} 35. Rde2 {[%clk 0:01:39]}  Rxd3 {[%clk 0:00:53]} 36. Rxd3 {[%clk 0:01:40]}  Rxd3 {[%clk 0:00:52]} 37. Rxe5 {[%clk 0:01:19]}  Rd1 {[%clk 0:00:52]} 38. Qxd1 {[%clk 0:00:32]}  Bxd1 {[%clk 0:00:48]} 39. Bc4+ {[%clk 0:00:33]}  Kg7 {[%clk 0:00:45]} 40. Re8 {[%clk 0:00:28]}  Bb3 {[%clk 0:00:42]} 41. Be6 {[%clk 0:00:23]}  Qd6 {[%clk 0:00:34]} 42. Rg8+ {[%clk 0:00:19]}  Kh7 {[%clk 0:00:34]} 43. Re8 {[%clk 0:00:20]}  Bd5 {[%clk 0:00:30]} 44. Bc8 {[%clk 0:00:12]}  Bf3 {[%clk 0:00:28]} 45. Re1 {[%clk 0:00:09]}  Qd2 {[%clk 0:00:28]} 46. Re7+ {[%clk 0:00:09]}  Kg8 {[%clk 0:00:27]} 47. Re8+ {[%clk 0:00:01]}  Kf7 {[%clk 0:00:26]} 0-1

[Event "December 5 Early 2023"]
[Site "https://www.chess.com"]
[Date "2023.12.05"]
[Round "1"]
[White "Kraiouchkine, Nikita"]
[Black "BestStelker"]
[Result "0-1"]
[Board "72"]
[TimeControl "180+1"]
[WhiteFideId "2607140"]
[WhiteElo "2463"]
[BlackElo "2817"]
[WhiteTeam "CAN"]
[WhiteClock "0:00:00"]
[BlackClock "0:00:47"]

1. e4 {[%clk 0:03:00]}  c5 {[%clk 0:02:55]} 2. Nf3 {[%clk 0:02:55]}  e6 {[%clk 0:02:55]} 3. c3 {[%clk 0:02:49]}  d5 {[%clk 0:02:50]} 4. e5 {[%clk 0:02:46]}  Nc6 {[%clk 0:02:49]} 5. d4 {[%clk 0:02:45]}  Qb6 {[%clk 0:02:49]} 6. a3 {[%clk 0:02:43]}  c4 {[%clk 0:02:49]} 7. Nbd2 {[%clk 0:02:42]}  Na5 {[%clk 0:02:49]} 8. b4 {[%clk 0:02:41]}  cxb3 {[%clk 0:02:48]} 9. Bb2 {[%clk 0:02:40]}  Ne7 {[%clk 0:02:28]} 10. c4 {[%clk 0:02:39]}  dxc4 {[%clk 0:02:28]} 11. Nxc4 {[%clk 0:02:38]}  Nxc4 {[%clk 0:02:28]} 12. Bxc4 {[%clk 0:02:37]}  Bd7 {[%clk 0:02:25]} 13. O-O {[%clk 0:02:26]}  Bc6 {[%clk 0:02:24]} 14. Qxb3 {[%clk 0:02:07]}  Qxb3 {[%clk 0:02:21]} 15. Bxb3 {[%clk 0:02:07]}  Nd5 {[%clk 0:02:21]} 16. Rfe1 {[%clk 0:01:36]}  Be7 {[%clk 0:02:21]} 17. g3 {[%clk 0:01:27]}  O-O {[%clk 0:02:19]} 18. Nd2 {[%clk 0:01:27]}  Rfd8 {[%clk 0:02:18]} 19. Ne4 {[%clk 0:01:25]}  Rac8 {[%clk 0:02:15]} 20. Rac1 {[%clk 0:01:16]}  h6 {[%clk 0:02:15]} 21. Nc5 {[%clk 0:01:07]}  b6 {[%clk 0:02:09]} 22. Ne4 {[%clk 0:00:57]}  Bb7 {[%clk 0:02:09]} 23. Rxc8 {[%clk 0:00:51]}  Rxc8 {[%clk 0:02:10]} 24. Rc1 {[%clk 0:00:50]}  Rxc1+ {[%clk 0:02:10]} 25. Bxc1 {[%clk 0:00:50]}  Kf8 {[%clk 0:02:05]} 26. f3 {[%clk 0:00:47]}  Ke8 {[%clk 0:02:04]} 27. Kf2 {[%clk 0:00:47]}  Kd7 {[%clk 0:02:05]} 28. Bc4 {[%clk 0:00:39]}  Bc6 {[%clk 0:01:50]} 29. h4 {[%clk 0:00:38]}  b5 {[%clk 0:01:47]} 30. Bb3 {[%clk 0:00:34]}  Kc7 {[%clk 0:01:45]} 31. Bb2 {[%clk 0:00:27]}  Kb6 {[%clk 0:01:44]} 32. Ke2 {[%clk 0:00:20]}  a5 {[%clk 0:01:41]} 33. Kd3 {[%clk 0:00:20]}  a4 {[%clk 0:01:40]} 34. Bd1 {[%clk 0:00:19]}  b4 {[%clk 0:01:35]} 35. axb4 {[%clk 0:00:19]}  Bxb4 {[%clk 0:01:23]} 36. Bc3 {[%clk 0:00:19]}  Bxc3 {[%clk 0:00:57]} 37. Nxc3 {[%clk 0:00:19]}  a3 {[%clk 0:00:58]} 38. Na2 {[%clk 0:00:09]}  Ka5 {[%clk 0:00:52]} 39. Kc4 {[%clk 0:00:09]}  Ne3+ {[%clk 0:00:50]} 40. Kc5 {[%clk 0:00:09]}  Bd5 {[%clk 0:00:48]} 41. Nc3 {[%clk 0:00:00]}  Nxd1 {[%clk 0:00:47]} 0-1